[Event "Titled Tuesday Blitz November 22 Early 2022"]
[White "Boraso, Alessio"]
[Black "Goncalves, Davi Sulzbacher"]
[WhiteFideId "848077"]
[BlackFideId "2154510"]
[WhiteElo "2286"]
[BlackElo "2182"]
[Result "0-1"]
[Round "07"]
[TimeControl "180+1"]
[Date "2022.11.23"]
[WhiteClock "0:00:03"]
[BlackClock "0:00:43"]

1. e4 {[%clk 0:03:00]}  c6 {[%clk 0:02:59]} 2. d4 {[%clk 0:02:59]}  d5 {[%clk 0:02:59]} 3. exd5 {[%clk 0:02:56]}  cxd5 {[%clk 0:02:59]} 4. c4 {[%clk 0:02:56]}  Nf6 {[%clk 0:02:59]} 5. Nc3 {[%clk 0:02:57]}  Nc6 {[%clk 0:02:58]} 6. Nf3 {[%clk 0:02:57]}  Bg4 {[%clk 0:02:58]} 7. cxd5 {[%clk 0:02:54]}  Nxd5 {[%clk 0:02:57]} 8. Qb3 {[%clk 0:02:54]}  Bxf3 {[%clk 0:02:55]} 9. gxf3 {[%clk 0:02:55]}  Nb6 {[%clk 0:02:50]} 10. d5 {[%clk 0:02:50]}  Ne5 {[%clk 0:02:42]} 11. Bb5+ {[%clk 0:02:41]}  Ned7 {[%clk 0:02:42]} 12. O-O {[%clk 0:02:29]}  a6 {[%clk 0:02:39]} 13. Bxd7+ {[%clk 0:02:01]}  Nxd7 {[%clk 0:02:40]} 14. Qxb7 {[%clk 0:01:58]}  Rb8 {[%clk 0:02:32]} 15. Qxa6 {[%clk 0:01:53]}  g5 {[%clk 0:02:17]} 16. Ne4 {[%clk 0:01:38]}  Rg8 {[%clk 0:02:06]} 17. Re1 {[%clk 0:01:31]}  Rb6 {[%clk 0:02:01]} 18. Nd6+ {[%clk 0:01:24]}  Rxd6 {[%clk 0:01:59]} 19. Qxd6 {[%clk 0:01:25]}  g4 {[%clk 0:01:57]} 20. f4 {[%clk 0:01:16]}  Qa5 {[%clk 0:01:44]} 21. b4 {[%clk 0:01:06]}  Qa7 {[%clk 0:01:31]} 22. Be3 {[%clk 0:01:02]}  Qa3 {[%clk 0:01:20]} 23. Bc5 {[%clk 0:00:46]}  Kd8 {[%clk 0:01:08]} 24. Bb6+ {[%clk 0:00:27]}  Ke8 {[%clk 0:01:08]} 25. Qc7 {[%clk 0:00:20]}  Qa8 {[%clk 0:01:04]} 26. Rac1 {[%clk 0:00:19]}  f5 {[%clk 0:01:01]} 27. Qc8+ {[%clk 0:00:10]}  Qxc8 {[%clk 0:01:02]} 28. Rxc8+ {[%clk 0:00:11]}  Kf7 {[%clk 0:01:03]} 29. Bd4 {[%clk 0:00:11]}  Rg6 {[%clk 0:01:03]} 30. b5 {[%clk 0:00:09]}  Rd6 {[%clk 0:01:02]} 31. Rd1 {[%clk 0:00:06]}  Rxd5 {[%clk 0:01:02]} 32. a4 {[%clk 0:00:05]}  Nb6 {[%clk 0:01:00]} 33. Bxb6 {[%clk 0:00:02]}  Rxd1+ {[%clk 0:01:00]} 34. Kg2 {[%clk 0:00:03]}  Rb1 {[%clk 0:00:58]} 35. Rc5 {[%clk 0:00:03]}  Ra1 {[%clk 0:00:57]} 36. Rc4 {[%clk 0:00:03]}  Bh6 {[%clk 0:00:55]} 37. Be3 {[%clk 0:00:02]}  e5 {[%clk 0:00:51]} 38. fxe5 {[%clk 0:00:02]}  Bxe3 {[%clk 0:00:51]} 39. fxe3 {[%clk 0:00:02]}  Rb1 {[%clk 0:00:52]} 40. Kg3 {[%clk 0:00:02]}  Ke6 {[%clk 0:00:52]} 41. Rc6+ {[%clk 0:00:02]}  Kxe5 {[%clk 0:00:52]} 42. Rc4 {[%clk 0:00:03]}  Rb3 {[%clk 0:00:51]} 43. Kf2 {[%clk 0:00:02]}  h5 {[%clk 0:00:49]} 44. Ke2 {[%clk 0:00:02]}  h4 {[%clk 0:00:48]} 45. Rc5+ {[%clk 0:00:02]}  Ke4 {[%clk 0:00:47]} 46. Rc4+ {[%clk 0:00:03]}  Kd5 {[%clk 0:00:47]} 47. Rc8 {[%clk 0:00:03]}  Rb2+ {[%clk 0:00:44]} 48. Kd3 {[%clk 0:00:03]}  Rxh2 {[%clk 0:00:44]} 49. b6 {[%clk 0:00:04]}  Rb2 {[%clk 0:00:45]} 50. a5 {[%clk 0:00:04]}  h3 {[%clk 0:00:45]} 51. Rh8 {[%clk 0:00:04]}  Rb3+ {[%clk 0:00:41]} 52. Kc2 {[%clk 0:00:04]}  Rb5 {[%clk 0:00:41]} 53. a6 {[%clk 0:00:04]}  Rxb6 {[%clk 0:00:41]} 54. a7 {[%clk 0:00:05]}  Ra6 {[%clk 0:00:42]} 55. a8=Q+ {[%clk 0:00:05]}  Rxa8 {[%clk 0:00:42]} 56. Rxa8 {[%clk 0:00:06]}  g3 {[%clk 0:00:43]} 57. e4+ {[%clk 0:00:01]}  Kxe4 {[%clk 0:00:43]} 58. Ra3 {[%clk 0:00:02]}  f4 {[%clk 0:00:43]} 59. Kd2 {[%clk 0:00:02]}  h2 {[%clk 0:00:43]} 60. Ra4+ {[%clk 0:00:03]}  Kf3 {[%clk 0:00:44]} 61. Ra3+ {[%clk 0:00:03]}  Kg4 {[%clk 0:00:44]} 62. Ra8 {[%clk 0:00:02]}  h1=Q {[%clk 0:00:43]} 63. Rg8+ {[%clk 0:00:03]}  Kf3 {[%clk 0:00:44]} 64. Re8 {[%clk 0:00:03]}  g2 {[%clk 0:00:44]} 65. Re2 {[%clk 0:00:02]}  g1=Q {[%clk 0:00:43]} 66. Re5 {[%clk 0:00:03]} 0-1


[Site "https://www.chess.com"]

[Event "Titled Tuesday Blitz November 22 Early 2022"]
[White "Chan, Kim Yew"]
[Black "Ghosh, Chanchal Kumer"]
[WhiteFideId "5717981"]
[BlackFideId "10201858"]
[WhiteElo "2206"]
[BlackElo "2058"]
[Result "0-1"]
[Round "07"]
[TimeControl "180+1"]
[Date "2022.11.23"]
[WhiteClock "0:00:01"]
[BlackClock "0:00:28"]

1. d4 {[%clk 0:03:00]}  d5 {[%clk 0:02:59]} 2. c4 {[%clk 0:02:59]}  e6 {[%clk 0:03:00]} 3. g3 {[%clk 0:02:58]}  Nf6 {[%clk 0:03:00]} 4. Bg2 {[%clk 0:02:58]}  c6 {[%clk 0:03:01]} 5. Nf3 {[%clk 0:02:58]}  Nbd7 {[%clk 0:03:01]} 6. O-O {[%clk 0:02:57]}  Bd6 {[%clk 0:03:02]} 7. Qc2 {[%clk 0:02:56]}  O-O {[%clk 0:03:01]} 8. Rd1 {[%clk 0:02:53]}  Qe7 {[%clk 0:03:00]} 9. Nbd2 {[%clk 0:02:52]}  e5 {[%clk 0:02:58]} 10. dxe5 {[%clk 0:02:47]}  Nxe5 {[%clk 0:02:59]} 11. Nxe5 {[%clk 0:02:47]}  Bxe5 {[%clk 0:03:00]} 12. Nf3 {[%clk 0:02:47]}  Bc7 {[%clk 0:02:40]} 13. cxd5 {[%clk 0:02:07]}  Nxd5 {[%clk 0:02:39]} 14. e4 {[%clk 0:02:07]}  Nf6 {[%clk 0:02:31]} 15. Nd4 {[%clk 0:02:01]}  Bb6 {[%clk 0:02:25]} 16. h3 {[%clk 0:01:59]}  Re8 {[%clk 0:02:15]} 17. Bg5 {[%clk 0:01:04]}  Qe5 {[%clk 0:02:08]} 18. Bf4 {[%clk 0:01:01]}  Qe7 {[%clk 0:01:45]} 19. Nb3 {[%clk 0:00:36]}  Nxe4 {[%clk 0:01:31]} 20. Bxe4 {[%clk 0:00:20]}  Qxe4 {[%clk 0:01:31]} 21. Re1 {[%clk 0:00:07]}  Qxe1+ {[%clk 0:01:22]} 22. Rxe1 {[%clk 0:00:08]}  Rxe1+ {[%clk 0:01:22]} 23. Kg2 {[%clk 0:00:08]}  Be6 {[%clk 0:01:18]} 24. Qd2 {[%clk 0:00:08]}  Bd5+ {[%clk 0:01:12]} 25. f3 {[%clk 0:00:06]}  Rg1+ {[%clk 0:01:12]} 26. Kh2 {[%clk 0:00:06]}  Bxf3 {[%clk 0:01:11]} 27. g4 {[%clk 0:00:05]}  Rd8 {[%clk 0:00:45]} 28. Qxd8+ {[%clk 0:00:05]}  Bxd8 {[%clk 0:00:41]} 29. Kxg1 {[%clk 0:00:06]}  Bd5 {[%clk 0:00:39]} 30. Nc5 {[%clk 0:00:04]}  Bb6 {[%clk 0:00:37]} 31. b4 {[%clk 0:00:04]}  Bxa2 {[%clk 0:00:35]} 32. Kg2 {[%clk 0:00:04]}  Bxc5 {[%clk 0:00:34]} 33. bxc5 {[%clk 0:00:05]}  a5 {[%clk 0:00:32]} 34. Bd2 {[%clk 0:00:05]}  a4 {[%clk 0:00:32]} 35. Kg3 {[%clk 0:00:05]}  f6 {[%clk 0:00:30]} 36. Kf4 {[%clk 0:00:04]}  Kf7 {[%clk 0:00:31]} 37. h4 {[%clk 0:00:04]}  Ke6 {[%clk 0:00:31]} 38. Bc1 {[%clk 0:00:01]}  g6 {[%clk 0:00:28]} 0-1


[Site "https://www.chess.com"]

[Event "Titled Tuesday Blitz November 22 Early 2022"]
[White "Chigaev, Maksim"]
[Black "Gines Esteo, Pedro Antonio"]
[WhiteFideId "4108116"]
[BlackFideId "32080190"]
[WhiteElo "2541"]
[BlackElo "2422"]
[Result "1-0"]
[Round "07"]
[TimeControl "180+1"]
[Date "2022.11.22"]
[WhiteClock "0:00:32"]
[BlackClock "0:00:01"]

1. c4 {[%clk 0:03:00]}  Nf6 {[%clk 0:02:52]} 2. Nc3 {[%clk 0:03:01]}  e6 {[%clk 0:02:51]} 3. e4 {[%clk 0:02:59]}  d5 {[%clk 0:02:51]} 4. cxd5 {[%clk 0:02:59]}  exd5 {[%clk 0:02:51]} 5. e5 {[%clk 0:03:00]}  Ne4 {[%clk 0:02:51]} 6. Nf3 {[%clk 0:02:59]}  Be7 {[%clk 0:02:07]} 7. d4 {[%clk 0:02:59]}  O-O {[%clk 0:02:05]} 8. Bd3 {[%clk 0:02:59]}  f5 {[%clk 0:02:05]} 9. exf6 {[%clk 0:02:55]}  Bxf6 {[%clk 0:02:00]} 10. O-O {[%clk 0:02:43]}  Nxc3 {[%clk 0:01:41]} 11. bxc3 {[%clk 0:02:44]}  Bg4 {[%clk 0:01:32]} 12. Be2 {[%clk 0:02:29]}  c6 {[%clk 0:01:25]} 13. Ne5 {[%clk 0:02:18]}  Bxe2 {[%clk 0:01:23]} 14. Qxe2 {[%clk 0:02:19]}  Nd7 {[%clk 0:01:01]} 15. f4 {[%clk 0:02:19]}  Nxe5 {[%clk 0:01:01]} 16. dxe5 {[%clk 0:02:16]}  Be7 {[%clk 0:01:01]} 17. Be3 {[%clk 0:02:02]}  Qd7 {[%clk 0:00:59]} 18. a4 {[%clk 0:02:02]}  b6 {[%clk 0:00:52]} 19. g4 {[%clk 0:01:46]}  Rae8 {[%clk 0:00:36]} 20. f5 {[%clk 0:01:42]}  Bc5 {[%clk 0:00:15]} 21. Bxc5 {[%clk 0:01:42]}  bxc5 {[%clk 0:00:16]} 22. e6 {[%clk 0:01:43]}  Qd6 {[%clk 0:00:16]} 23. Kg2 {[%clk 0:01:33]}  d4 {[%clk 0:00:16]} 24. c4 {[%clk 0:01:33]}  Rb8 {[%clk 0:00:15]} 25. Rad1 {[%clk 0:01:10]}  Rb3 {[%clk 0:00:13]} 26. Rf3 {[%clk 0:01:07]}  Rb4 {[%clk 0:00:09]} 27. g5 {[%clk 0:00:57]}  Rfb8 {[%clk 0:00:09]} 28. Rd2 {[%clk 0:00:35]}  Qd8 {[%clk 0:00:02]} 29. f6 {[%clk 0:00:33]}  R4b7 {[%clk 0:00:01]} 30. e7 {[%clk 0:00:32]} 1-0


[Site "https://www.chess.com"]

[Event "Titled Tuesday Blitz November 22 Early 2022"]
[White "Cramling Bellon, Anna"]
[Black "Buscar, Michael"]
[WhiteFideId "32009232"]
[BlackFideId "2603616"]
[WhiteElo "1972"]
[BlackElo "2010"]
[Result "0-1"]
[Round "07"]
[TimeControl "180+1"]
[Date "2022.11.23"]
[WhiteClock "0:00:10"]
[BlackClock "0:01:41"]

1. d4 {[%clk 0:03:00]}  d5 {[%clk 0:02:57]} 2. c4 {[%clk 0:03:00]}  e6 {[%clk 0:02:56]} 3. Nc3 {[%clk 0:03:00]}  a6 {[%clk 0:02:56]} 4. cxd5 {[%clk 0:02:58]}  exd5 {[%clk 0:02:55]} 5. Nf3 {[%clk 0:02:58]}  Nf6 {[%clk 0:02:54]} 6. Bg5 {[%clk 0:02:57]}  Be7 {[%clk 0:02:53]} 7. e3 {[%clk 0:02:57]}  c6 {[%clk 0:02:44]} 8. h3 {[%clk 0:02:57]}  O-O {[%clk 0:02:44]} 9. Bd3 {[%clk 0:02:56]}  Nbd7 {[%clk 0:02:44]} 10. Qc2 {[%clk 0:02:55]}  Re8 {[%clk 0:02:44]} 11. O-O {[%clk 0:02:53]}  Nf8 {[%clk 0:02:44]} 12. Ne5 {[%clk 0:02:53]}  g6 {[%clk 0:02:44]} 13. f4 {[%clk 0:02:51]}  Ne6 {[%clk 0:02:44]} 14. Bh6 {[%clk 0:01:45]}  Ng7 {[%clk 0:02:24]} 15. f5 {[%clk 0:01:36]}  Bd6 {[%clk 0:02:14]} 16. fxg6 {[%clk 0:00:59]}  hxg6 {[%clk 0:02:12]} 17. Bxg6 {[%clk 0:00:34]}  Bxe5 {[%clk 0:02:06]} 18. dxe5 {[%clk 0:00:30]}  Rxe5 {[%clk 0:02:06]} 19. Bxf7+ {[%clk 0:00:13]}  Kxf7 {[%clk 0:02:05]} 20. Qh7 {[%clk 0:00:13]}  Qf8 {[%clk 0:01:46]} 21. Rxf6+ {[%clk 0:00:06]}  Kxf6 {[%clk 0:01:46]} 22. Rf1+ {[%clk 0:00:06]}  Bf5 {[%clk 0:01:46]} 23. g4 {[%clk 0:00:02]}  Qh8 {[%clk 0:01:43]} 24. g5+ {[%clk 0:00:01]}  Ke6 {[%clk 0:01:41]} 25. Qxh8 {[%clk 0:00:01]}  Rxh8 {[%clk 0:01:40]} 26. Bxg7 {[%clk 0:00:02]}  Rxh3 {[%clk 0:01:39]} 27. Bxe5 {[%clk 0:00:02]}  Kxe5 {[%clk 0:01:40]} 28. Ne2 {[%clk 0:00:03]}  Rxe3 {[%clk 0:01:39]} 29. Ng3 {[%clk 0:00:03]}  Rxg3+ {[%clk 0:01:40]} 30. Kf2 {[%clk 0:00:03]}  Rxg5 {[%clk 0:01:40]} 31. Re1+ {[%clk 0:00:04]}  Be4 {[%clk 0:01:40]} 32. Ke3 {[%clk 0:00:04]}  Rg3+ {[%clk 0:01:40]} 33. Kd2 {[%clk 0:00:04]}  Rg2+ {[%clk 0:01:40]} 34. Re2 {[%clk 0:00:04]}  Rxe2+ {[%clk 0:01:40]} 35. Kxe2 {[%clk 0:00:05]}  Kd4 {[%clk 0:01:41]} 36. Kd2 {[%clk 0:00:06]}  c5 {[%clk 0:01:42]} 37. Kc1 {[%clk 0:00:06]}  c4 {[%clk 0:01:42]} 38. b3 {[%clk 0:00:07]}  c3 {[%clk 0:01:43]} 39. a4 {[%clk 0:00:07]}  c2 {[%clk 0:01:43]} 40. a5 {[%clk 0:00:08]}  Kc3 {[%clk 0:01:42]} 41. b4 {[%clk 0:00:09]}  Kxb4 {[%clk 0:01:42]} 42. Kb2 {[%clk 0:00:09]}  d4 {[%clk 0:01:42]} 43. Ka2 {[%clk 0:00:10]}  d3 {[%clk 0:01:41]} 44. Kb2 {[%clk 0:00:11]}  d2 {[%clk 0:01:41]} 45. Ka2 {[%clk 0:00:10]}  d1=Q {[%clk 0:01:40]} 46. Kb2 {[%clk 0:00:10]}  c1=Q+ {[%clk 0:01:40]} 47. Ka2 {[%clk 0:00:10]}  Qa4# {[%clk 0:01:41]} 0-1


[Site "https://www.chess.com"]

[Event "Titled Tuesday Blitz November 22 Early 2022"]
[White "Crevatin, Leo"]
[Black "Viskelis, Darius"]
[WhiteFideId "1726307"]
[BlackFideId "12800830"]
[WhiteElo "2208"]
[BlackElo "2025"]
[Result "1-0"]
[Round "07"]
[TimeControl "180+1"]
[Date "2022.11.23"]
[WhiteClock "0:00:40"]
[BlackClock "0:00:02"]

1. d4 {[%clk 0:02:50]}  d5 {[%clk 0:02:59]} 2. Bf4 {[%clk 0:02:47]}  Bf5 {[%clk 0:02:57]} 3. e3 {[%clk 0:02:46]}  e6 {[%clk 0:02:57]} 4. Bd3 {[%clk 0:02:44]}  Bxd3 {[%clk 0:02:53]} 5. cxd3 {[%clk 0:02:45]}  Bd6 {[%clk 0:02:53]} 6. Bg3 {[%clk 0:02:45]}  Nf6 {[%clk 0:02:52]} 7. Nf3 {[%clk 0:02:45]}  O-O {[%clk 0:02:51]} 8. Qb3 {[%clk 0:02:45]}  Nc6 {[%clk 0:02:34]} 9. O-O {[%clk 0:02:40]}  Bxg3 {[%clk 0:02:34]} 10. hxg3 {[%clk 0:02:37]}  Qd6 {[%clk 0:02:34]} 11. Nc3 {[%clk 0:02:34]}  Qb4 {[%clk 0:02:27]} 12. Qc2 {[%clk 0:02:33]}  a5 {[%clk 0:02:25]} 13. Rac1 {[%clk 0:02:31]}  a4 {[%clk 0:01:59]} 14. a3 {[%clk 0:02:29]}  Qa5 {[%clk 0:01:59]} 15. Qe2 {[%clk 0:02:22]}  Qb6 {[%clk 0:01:48]} 16. Rc2 {[%clk 0:02:21]}  h6 {[%clk 0:01:42]} 17. Rfc1 {[%clk 0:02:21]}  Ra5 {[%clk 0:01:25]} 18. Nb1 {[%clk 0:02:14]}  Rfa8 {[%clk 0:01:17]} 19. Ne5 {[%clk 0:02:12]}  Nxe5 {[%clk 0:01:12]} 20. dxe5 {[%clk 0:02:13]}  Ne8 {[%clk 0:01:12]} 21. d4 {[%clk 0:02:11]}  c6 {[%clk 0:01:10]} 22. g4 {[%clk 0:02:08]}  Rb5 {[%clk 0:00:41]} 23. g3 {[%clk 0:02:04]}  Rb3 {[%clk 0:00:38]} 24. Kg2 {[%clk 0:02:05]}  Qb5 {[%clk 0:00:34]} 25. f3 {[%clk 0:02:02]}  Qxe2+ {[%clk 0:00:34]} 26. Rxe2 {[%clk 0:02:02]}  Ra5 {[%clk 0:00:33]} 27. Kf2 {[%clk 0:01:58]}  Nc7 {[%clk 0:00:30]} 28. Ke1 {[%clk 0:01:52]}  Kf8 {[%clk 0:00:29]} 29. Kd1 {[%clk 0:01:51]}  Ke7 {[%clk 0:00:27]} 30. Kc2 {[%clk 0:01:50]}  Rab5 {[%clk 0:00:26]} 31. Nc3 {[%clk 0:01:45]}  Rxb2+ {[%clk 0:00:26]} 32. Kd1 {[%clk 0:01:44]}  Rxe2 {[%clk 0:00:25]} 33. Nxb5 {[%clk 0:01:44]}  Rxe3 {[%clk 0:00:17]} 34. Nxc7 {[%clk 0:01:44]}  Rxf3 {[%clk 0:00:14]} 35. Kd2 {[%clk 0:01:26]}  Rxa3 {[%clk 0:00:13]} 36. Rc3 {[%clk 0:01:25]}  Rxc3 {[%clk 0:00:09]} 37. Kxc3 {[%clk 0:01:25]}  Kd7 {[%clk 0:00:07]} 38. Na8 {[%clk 0:01:25]}  b5 {[%clk 0:00:07]} 39. Kb4 {[%clk 0:01:03]}  Kc8 {[%clk 0:00:07]} 40. Nb6+ {[%clk 0:01:02]}  Kb7 {[%clk 0:00:07]} 41. Nd7 {[%clk 0:01:02]}  Kc7 {[%clk 0:00:03]} 42. Nc5 {[%clk 0:01:00]}  Kd8 {[%clk 0:00:02]} 43. Ka5 {[%clk 0:00:59]}  Kc7 {[%clk 0:00:01]} 44. Nd3 {[%clk 0:00:53]}  f6 {[%clk 0:00:01]} 45. Kb4 {[%clk 0:00:51]}  fxe5 {[%clk 0:00:01]} 46. Nxe5 {[%clk 0:00:49]}  Kb6 {[%clk 0:00:01]} 47. Nd3 {[%clk 0:00:50]}  Kc7 {[%clk 0:00:02]} 48. Kc5 {[%clk 0:00:40]}  Kd7 {[%clk 0:00:02]} 49. Ne5+ {[%clk 0:00:40]}  Kc7 {[%clk 0:00:01]} 50. Nxc6 {[%clk 0:00:41]}  a3 {[%clk 0:00:02]} 51. Nb4 {[%clk 0:00:41]}  e5 {[%clk 0:00:01]} 52. dxe5 {[%clk 0:00:41]}  Kd7 {[%clk 0:00:01]} 53. Kxd5 {[%clk 0:00:41]}  Ke7 {[%clk 0:00:02]} 54. e6 {[%clk 0:00:40]} 1-0


[Site "https://www.chess.com"]

[Event "Titled Tuesday Blitz November 22 Early 2022"]
[White "Csonka, Balazs"]
[Black "Oparin, Grigoriy"]
[WhiteFideId "742910"]
[BlackFideId "24125890"]
[WhiteElo "2404"]
[BlackElo "2639"]
[Result "0-1"]
[Round "07"]
[TimeControl "180+1"]
[Date "2022.11.22"]
[WhiteClock "0:00:05"]
[BlackClock "0:00:18"]

1. d4 {[%clk 0:03:00]}  d5 {[%clk 0:02:58]} 2. c4 {[%clk 0:02:58]}  e6 {[%clk 0:02:59]} 3. Nc3 {[%clk 0:02:56]}  Nf6 {[%clk 0:02:59]} 4. Nf3 {[%clk 0:02:56]}  Be7 {[%clk 0:02:58]} 5. g3 {[%clk 0:02:53]}  O-O {[%clk 0:02:58]} 6. Bg2 {[%clk 0:02:53]}  dxc4 {[%clk 0:02:59]} 7. Ne5 {[%clk 0:02:50]}  Nc6 {[%clk 0:02:59]} 8. Bxc6 {[%clk 0:02:49]}  bxc6 {[%clk 0:03:00]} 9. Nxc6 {[%clk 0:02:49]}  Qe8 {[%clk 0:03:00]} 10. Nxe7+ {[%clk 0:02:48]}  Qxe7 {[%clk 0:03:01]} 11. Qa4 {[%clk 0:02:47]}  a5 {[%clk 0:03:02]} 12. Qxc4 {[%clk 0:02:25]}  Nd5 {[%clk 0:03:02]} 13. Qc5 {[%clk 0:02:00]}  Qd7 {[%clk 0:03:01]} 14. Nxd5 {[%clk 0:01:53]}  exd5 {[%clk 0:03:01]} 15. Be3 {[%clk 0:01:46]}  Ba6 {[%clk 0:02:57]} 16. Rc1 {[%clk 0:01:45]}  Rfe8 {[%clk 0:02:48]} 17. Kd2 {[%clk 0:01:22]}  a4 {[%clk 0:02:42]} 18. Rc2 {[%clk 0:01:07]}  Bc4 {[%clk 0:02:40]} 19. Rhc1 {[%clk 0:01:00]}  Rab8 {[%clk 0:02:40]} 20. Rxc4 {[%clk 0:00:41]}  dxc4 {[%clk 0:02:39]} 21. Rc2 {[%clk 0:00:41]}  Qe6 {[%clk 0:02:04]} 22. Qxc7 {[%clk 0:00:32]}  Rec8 {[%clk 0:02:01]} 23. Qa5 {[%clk 0:00:32]}  h6 {[%clk 0:01:48]} 24. Qc3 {[%clk 0:00:20]}  Qd5 {[%clk 0:01:48]} 25. f3 {[%clk 0:00:19]}  Qf5 {[%clk 0:01:40]} 26. Ke1 {[%clk 0:00:18]}  Qh3 {[%clk 0:01:39]} 27. Bf2 {[%clk 0:00:12]}  Qxh2 {[%clk 0:01:39]} 28. e4 {[%clk 0:00:13]}  h5 {[%clk 0:01:18]} 29. d5 {[%clk 0:00:13]}  Re8 {[%clk 0:01:02]} 30. Qxc4 {[%clk 0:00:11]}  f5 {[%clk 0:00:56]} 31. d6+ {[%clk 0:00:08]}  Kh7 {[%clk 0:00:56]} 32. d7 {[%clk 0:00:08]}  Red8 {[%clk 0:00:48]} 33. Qe6 {[%clk 0:00:09]}  fxe4 {[%clk 0:00:45]} 34. Qxe4+ {[%clk 0:00:08]}  Kh8 {[%clk 0:00:44]} 35. Qe6 {[%clk 0:00:08]}  Qh1+ {[%clk 0:00:38]} 36. Ke2 {[%clk 0:00:08]}  Qb1 {[%clk 0:00:38]} 37. Rd2 {[%clk 0:00:05]}  Kh7 {[%clk 0:00:27]} 38. Bd4 {[%clk 0:00:05]}  Qg6 {[%clk 0:00:22]} 39. Qxg6+ {[%clk 0:00:05]}  Kxg6 {[%clk 0:00:23]} 40. Bc3 {[%clk 0:00:05]}  Rb7 {[%clk 0:00:23]} 41. Rd6+ {[%clk 0:00:05]}  Kf7 {[%clk 0:00:23]} 42. Rd4 {[%clk 0:00:04]}  a3 {[%clk 0:00:22]} 43. bxa3 {[%clk 0:00:04]}  Rdxd7 {[%clk 0:00:22]} 44. Rf4+ {[%clk 0:00:03]}  Kg6 {[%clk 0:00:21]} 45. Re4 {[%clk 0:00:03]}  Rbc7 {[%clk 0:00:21]} 46. Re3 {[%clk 0:00:03]}  Rc4 {[%clk 0:00:21]} 47. Rd3 {[%clk 0:00:03]}  Rdc7 {[%clk 0:00:17]} 48. Kd2 {[%clk 0:00:03]}  Kf7 {[%clk 0:00:17]} 49. Kc2 {[%clk 0:00:03]}  g5 {[%clk 0:00:17]} 50. Kb3 {[%clk 0:00:04]}  Rxc3+ {[%clk 0:00:17]} 51. Rxc3 {[%clk 0:00:04]}  Rxc3+ {[%clk 0:00:18]} 52. Kxc3 {[%clk 0:00:04]}  h4 {[%clk 0:00:19]} 53. a4 {[%clk 0:00:05]}  h3 {[%clk 0:00:18]} 0-1


[Site "https://www.chess.com"]

[Event "Titled Tuesday Blitz November 22 Early 2022"]
[White "D`Arruda, Ricardo D."]
[Black "Stankovic, Ivan G"]
[WhiteFideId "100692"]
[BlackFideId "902837"]
[WhiteElo "2516"]
[BlackElo "2226"]
[Result "1-0"]
[Round "07"]
[TimeControl "180+1"]
[Date "2022.11.23"]
[WhiteClock "0:00:46"]
[BlackClock "0:00:52"]

1. d4 {[%clk 0:02:58]}  d5 {[%clk 0:03:00]} 2. Nf3 {[%clk 0:02:58]}  Nf6 {[%clk 0:03:00]} 3. c4 {[%clk 0:02:56]}  c6 {[%clk 0:03:00]} 4. Nc3 {[%clk 0:02:56]}  a6 {[%clk 0:03:00]} 5. e3 {[%clk 0:02:56]}  Bf5 {[%clk 0:03:01]} 6. Bd3 {[%clk 0:02:55]}  Bxd3 {[%clk 0:03:01]} 7. Qxd3 {[%clk 0:02:56]}  e6 {[%clk 0:03:01]} 8. O-O {[%clk 0:02:55]}  Bb4 {[%clk 0:03:00]} 9. Bd2 {[%clk 0:02:54]}  a5 {[%clk 0:02:56]} 10. a3 {[%clk 0:02:52]}  Bxc3 {[%clk 0:02:56]} 11. bxc3 {[%clk 0:02:49]}  Ne4 {[%clk 0:02:54]} 12. cxd5 {[%clk 0:02:48]}  cxd5 {[%clk 0:02:49]} 13. c4 {[%clk 0:02:47]}  dxc4 {[%clk 0:02:43]} 14. Qxc4 {[%clk 0:02:48]}  O-O {[%clk 0:02:42]} 15. Rab1 {[%clk 0:02:45]}  b6 {[%clk 0:02:35]} 16. Rfc1 {[%clk 0:02:41]}  Nd7 {[%clk 0:02:33]} 17. Be1 {[%clk 0:02:31]}  Rc8 {[%clk 0:02:32]} 18. Qd3 {[%clk 0:02:24]}  Nd6 {[%clk 0:02:23]} 19. a4 {[%clk 0:02:20]}  Rxc1 {[%clk 0:01:51]} 20. Rxc1 {[%clk 0:02:21]}  Qb8 {[%clk 0:01:51]} 21. Rc6 {[%clk 0:02:13]}  Rc8 {[%clk 0:01:48]} 22. Qc2 {[%clk 0:02:12]}  Qb7 {[%clk 0:01:43]} 23. Rxc8+ {[%clk 0:02:07]}  Qxc8 {[%clk 0:01:42]} 24. Qxc8+ {[%clk 0:02:05]}  Nxc8 {[%clk 0:01:43]} 25. Kf1 {[%clk 0:02:04]}  Kf8 {[%clk 0:01:42]} 26. Ke2 {[%clk 0:02:04]}  Ke7 {[%clk 0:01:39]} 27. Kd3 {[%clk 0:02:04]}  f6 {[%clk 0:01:38]} 28. e4 {[%clk 0:02:01]}  Kd6 {[%clk 0:01:37]} 29. Nd2 {[%clk 0:02:00]}  Kc6 {[%clk 0:01:34]} 30. Nc4 {[%clk 0:01:58]}  Nd6 {[%clk 0:01:32]} 31. Nxd6 {[%clk 0:01:57]}  Kxd6 {[%clk 0:01:32]} 32. f3 {[%clk 0:01:50]}  e5 {[%clk 0:01:30]} 33. Bg3 {[%clk 0:01:48]}  Kc6 {[%clk 0:01:24]} 34. d5+ {[%clk 0:01:38]}  Kb7 {[%clk 0:01:17]} 35. Bf2 {[%clk 0:01:34]}  Ka6 {[%clk 0:01:07]} 36. Kc4 {[%clk 0:01:34]}  g6 {[%clk 0:01:04]} 37. g3 {[%clk 0:01:28]}  Nb8 {[%clk 0:01:02]} 38. f4 {[%clk 0:01:24]}  Nd7 {[%clk 0:01:01]} 39. h4 {[%clk 0:01:16]}  f5 {[%clk 0:01:01]} 40. exf5 {[%clk 0:01:14]}  gxf5 {[%clk 0:01:02]} 41. d6 {[%clk 0:01:06]}  e4 {[%clk 0:01:00]} 42. Kd5 {[%clk 0:01:04]}  b5 {[%clk 0:01:00]} 43. Kc6 {[%clk 0:00:55]}  bxa4 {[%clk 0:00:53]} 44. Kxd7 {[%clk 0:00:55]}  a3 {[%clk 0:00:53]} 45. Kc6 {[%clk 0:00:46]}  a2 {[%clk 0:00:53]} 46. Bd4 {[%clk 0:00:46]}  e3 {[%clk 0:00:54]} 47. d7 {[%clk 0:00:46]}  e2 {[%clk 0:00:52]} 48. d8=Q {[%clk 0:00:46]} 1-0


[Site "https://www.chess.com"]